fUSD/lending_fUSD_20251223
["ID","MTS","AMOUNT","RATE_DAILY","PERIOD"]
[399571728,1766508430668,-250.0,0.0004767,60]
[399571729,1766508430708,-187.78006525,0.0004767,60]
[399571730,1766508430754,-250.0,0.0004767,120]
[399571731,1766508430795,-194.72792766,0.0004767,120]
[399571732,1766508430836,-151.0,0.0004767,60]
[399571733,1766508430877,-514.84070869,0.0004767,60]
[399571734,1766508430918,-151.0,0.0004767,60]
[399571735,1766508430961,-151.0,0.0004767,120]
[399571736,1766508431006,-533.88981491,0.0004767,120]
[399571737,1766508431048,-208.64493634,0.0004767,120]
[399571738,1766508431091,-151.0,0.0004767,60]
[399571739,1766508431132,-646.65982734,0.0004767,60]
[399571740,1766508431173,-151.0,0.0004767,120]
[399571741,1766508431215,-670.58624095,0.0004767,120]
[399571742,1766508431260,-151.0,0.0004767,60]
[399571743,1766508431523,-151.0,0.0004767,120]
[399571744,1766508431563,-250.0,0.0004767,60]
[399571745,1766508431604,-250.0,0.0004767,120]
[399571746,1766508431645,-250.0,0.0004767,60]
[399571747,1766508431687,-250.0,0.0004767,120]
[399571748,1766508431726,-500.0,0.0004767,60]
[399571749,1766508431776,-500.0,0.0004767,120]
[399571750,1766508431825,-167.0,0.000477,120]
[399571751,1766508431868,-179.0,0.000477,120]
[399571752,1766508431911,-1000000.0,0.00048,120]
[399571753,1766508431952,-150.0,0.00048,120]
[399571754,1766508431997,-1013.0,0.00048,120]
[399571755,1766508432039,-225.78397315,0.00048047,120]
[399571756,1766508432081,-219.18903301,0.00048047,120]
[399571757,1766508432122,-219.18903301,0.00048047,120]
[399571758,1766508432164,-1314.3469231,0.000481,120]
[399571759,1766508432206,-500.0,0.00048139,60]
[399571760,1766508432247,-2725.27,0.00048162,120]
[399571761,1766508432291,-2243.93,0.00048219,120]
[399571762,1766508432332,-200.0,0.00048249,120]
[399571763,1766508432374,-167.0,0.000483,120]
[399571764,1766508432415,-179.0,0.000483,120]
[399571765,1766508432455,-171.89054975,0.000485,120]
[399571766,1766508432493,-626.12181632,0.000485,120]
[399571767,1766508432531,-175.43156713,0.000485,120]
[399571768,1766508432571,-1089.83387802,0.000485,120]
[399571769,1766508432611,-1000000.0,0.000485,120]
[399571770,1766508432652,-101424.28692082,0.000488,120]
[399571771,1766508432690,-167.0,0.000488,120]
[399571772,1766508432726,-179.0,0.000488,120]
[399571773,1766508432763,-154.01568961,0.0004888,120]
[399571774,1766508432800,-181.08010149,0.00048998,90]
[399571775,1766508432837,-500.0,0.00048998,90]
[399571776,1766508432878,-8260.13072239,0.00048998,90]
[399571777,1766508432917,-600.0,0.00048998,90]
[399571778,1766508432963,-500.0,0.00048998,90]
[399571779,1766508433006,-500.0,0.00048998,90]
[399571780,1766508433049,-1108.0,0.00048998,90]
[399571781,1766508433091,-250.0,0.00048998,90]
[399571782,1766508433132,-500.0,0.00048998,90]
[399571783,1766508433175,-500.0,0.00048998,90]
[399571784,1766508433218,-500.0,0.00048998,90]
[399571785,1766508433258,-160.0,0.00048998,90]
[399571786,1766508433298,-1000.0,0.00048998,90]
[399571789,1766508433339,-250.0,0.00048998,90]
[399571790,1766508433377,-250.0,0.00048998,90]
[399571791,1766508433415,-220.0,0.00048998,90]
[399571792,1766508433454,-1500.0,0.00048998,90]
[399571793,1766508433493,-250.0,0.00048998,90]
[399571794,1766508433531,-181.08010149,0.00048998,90]
[399571795,1766508433569,-151.0,0.00048998,90]
[399571796,1766508433607,-496.47127164,0.00048998,90]
[399571797,1766508433644,-151.0,0.00048998,90]
[399571798,1766508433682,-151.0,0.00048998,90]
[399571799,1766508433719,-623.58710448,0.00048998,90]
[399571800,1766508433756,-151.0,0.00048998,90]
[399571801,1766508433794,-250.0,0.00048998,90]
[399571802,1766508433831,-250.0,0.00048998,90]
[399571803,1766508433869,-500.0,0.00048998,90]
[399571804,1766508433909,-500.0,0.00048999,63]
[399571805,1766508433949,-7965.41053268,0.00048999,63]
[399571806,1766508433992,-174.61919141,0.00048999,63]
[399571807,1766508434032,-600.0,0.00048999,63]
[399571808,1766508434072,-500.0,0.00048999,63]
[399571809,1766508434109,-500.0,0.00048999,63]
[399571810,1766508434147,-1108.0,0.00048999,63]
[399571811,1766508434189,-250.0,0.00048999,63]
[399571812,1766508434232,-500.0,0.00048999,63]
[399571813,1766508434274,-500.0,0.00048999,63]
[399571814,1766508434318,-500.0,0.00048999,63]
[399571815,1766508434359,-160.0,0.00048999,63]
[399571816,1766508434402,-1000.0,0.00048999,63]
[399571817,1766508434445,-250.0,0.00048999,63]
[399571818,1766508434486,-250.0,0.00048999,63]
[399571819,1766508434523,-220.0,0.00048999,63]
[399571820,1766508434562,-1500.0,0.00048999,63]
[399571821,1766508434605,-250.0,0.00048999,63]
[399571822,1766508434647,-174.61919141,0.00048999,63]
[399571823,1766508434689,-151.0,0.00048999,63]
[399571824,1766508434734,-478.75725327,0.00048999,63]
[399571825,1766508434777,-151.0,0.00048999,63]
[399571826,1766508434818,-151.0,0.00048999,63]
[399571827,1766508434857,-601.3376128,0.00048999,63]
[399571828,1766508434901,-151.0,0.00048999,63]
[399571829,1766508434942,-250.0,0.00048999,63]
[399571830,1766508434983,-250.0,0.00048999,63]
[399571831,1766508435029,-432.37231553,0.00048999,63]
[399571832,1766508435073,-500.0,0.00048999,63]
[399571833,1766508435115,-1651.30122535,0.00049,120]
[399571834,1766508435157,-1000000.0,0.00049,120]
[399571835,1766508435443,-470.23010818,0.00049,120]
[399571836,1766508435484,-516.44391596,0.00049,120]
[399571837,1766508435524,-150.0,0.00049,120]
[399571838,1766508435562,-253.0,0.00049,63]
[399571839,1766508435609,-7407.141672,0.0004904,60]
[399571840,1766508435648,-500.0,0.0004904,60]
[399571841,1766508435685,-600.0,0.0004904,60]
[399571842,1766508435721,-162.380719,0.0004904,60]
[399571843,1766508435759,-500.0,0.0004904,60]
[399571844,1766508435796,-500.0,0.0004904,60]
[399571845,1766508435835,-500.0,0.0004904,120]
[399571846,1766508435876,-7681.20591386,0.0004904,120]
[399571847,1766508435915,-168.3888056,0.0004904,120]
[399571848,1766508435954,-600.0,0.0004904,120]
[399571849,1766508435999,-500.0,0.0004904,120]
[399571850,1766508436039,-1108.0,0.0004904,60]
[399571851,1766508436079,-500.0,0.0004904,120]
[399571852,1766508436119,-1108.0,0.0004904,120]
[399571853,1766508436161,-250.0,0.0004904,60]
[399571854,1766508436207,-500.0,0.0004904,60]
[399571855,1766508436252,-500.0,0.0004904,60]
[399571856,1766508436296,-250.0,0.0004904,120]
[399571857,1766508436340,-500.0,0.0004904,120]
[399571858,1766508436379,-500.0,0.0004904,120]
[399571859,1766508436416,-500.0,0.0004904,60]
[399571860,1766508436452,-500.0,0.0004904,120]
[399571861,1766508436486,-160.0,0.0004904,60]
[399571862,1766508436524,-160.0,0.0004904,120]
[399571863,1766508436561,-1000.0,0.0004904,60]
[399571864,1766508436599,-250.0,0.0004904,60]
[399571865,1766508436635,-1000.0,0.0004904,120]
[399571866,1766508436670,-250.0,0.0004904,60]
[399571867,1766508436704,-220.0,0.0004904,60]
[399571868,1766508436738,-250.0,0.0004904,120]
[399571869,1766508436777,-250.0,0.0004904,120]
[399571870,1766508436823,-220.0,0.0004904,120]
[399571871,1766508436870,-1500.0,0.0004904,60]
[399571872,1766508436909,-1500.0,0.0004904,120]
[399571873,1766508436946,-250.0,0.0004904,60]
[399571874,1766508436991,-162.380719,0.0004904,60]
[399571875,1766508437031,-250.0,0.0004904,120]
[399571876,1766508437069,-168.3888056,0.0004904,120]
[399571877,1766508437105,-151.0,0.0004904,60]
[399571878,1766508437143,-151.0,0.0004904,120]
[399571879,1766508437182,-445.202766,0.0004904,60]
[399571880,1766508437223,-151.0,0.0004904,60]
[399571881,1766508437263,-461.67526834,0.0004904,120]
[399571882,1766508437301,-151.0,0.0004904,120]
[399571883,1766508437339,-151.0,0.0004904,60]
[399571884,1766508437374,-559.19188,0.0004904,60]
[399571885,1766508437411,-151.0,0.0004904,120]
[399571886,1766508437448,-579.88197956,0.0004904,120]
[399571887,1766508437488,-151.0,0.0004904,60]
[399571888,1766508437526,-151.0,0.0004904,120]
[399571889,1766508437564,-250.0,0.0004904,60]
[399571890,1766508437601,-250.0,0.0004904,120]
[399571891,1766508437641,-250.0,0.0004904,60]
[399571892,1766508437678,-250.0,0.0004904,120]
[399571893,1766508437712,-537.6845,0.0004904,60]
[399571894,1766508437749,-557.5788265,0.0004904,120]
[399571895,1766508437784,-500.0,0.0004904,60]
[399571896,1766508437820,-500.0,0.0004904,120]
[399571897,1766508437855,-537.6845,0.0004904,60]
[399571898,1766508437890,-557.5788265,0.0004904,120]
[399571899,1766508437927,-200.0,0.00049115,120]
[399571900,1766508437968,-222.49780322,0.00049235,60]
[399571901,1766508438008,-2000.0,0.00049315,120]
[399571902,1766508438048,-167.0,0.000494,120]
[399571903,1766508438089,-179.0,0.000494,120]
[399571904,1766508438128,-255.0,0.00049424,60]
[399571905,1766508438169,-418052.61600802,0.000495,120]
[399571906,1766508438209,-153.10553737,0.000495,60]
[399571907,1766508438252,-7142.856,0.00049862,60]
[399571908,1766508438295,-500.0,0.00049862,60]
[399571909,1766508438337,-600.0,0.00049862,60]
[399571910,1766508438380,-156.587,0.00049862,60]
[399571911,1766508438421,-500.0,0.00049862,60]
[399571912,1766508438462,-500.0,0.00049862,60]
[399571913,1766508438503,-1108.0,0.00049862,60]
[399571914,1766508438543,-311.1,0.00049862,60]
[399571915,1766508438586,-250.0,0.00049862,60]
[399571916,1766508438632,-500.0,0.00049862,60]
[399571917,1766508438672,-500.0,0.00049862,60]
[399571918,1766508438710,-500.0,0.00049862,60]
[399571919,1766508438752,-160.0,0.00049862,60]
[399571920,1766508438792,-1000.0,0.00049862,60]
[399571921,1766508439013,-250.0,0.00049862,60]
[399571922,1766508439095,-250.0,0.00049862,60]
[399571923,1766508439140,-220.0,0.00049862,60]
[399571924,1766508439186,-1500.0,0.00049862,60]
[399571925,1766508439230,-250.0,0.00049862,60]
[399571926,1766508439275,-156.587,0.00049862,60]
[399571927,1766508439319,-151.0,0.00049862,60]
[399571928,1766508439365,-429.318,0.00049862,60]
[399571929,1766508439408,-151.0,0.00049862,60]
[399571930,1766508439451,-151.0,0.00049862,60]
[399571931,1766508439495,-151.0,0.00049862,60]
[399571932,1766508439538,-539.24,0.00049862,60]
[399571933,1766508439585,-151.0,0.00049862,60]
[399571934,1766508439629,-250.0,0.00049862,60]
[399571935,1766508439671,-250.0,0.00049862,60]
[399571936,1766508439711,-518.5,0.00049862,60]
[399571937,1766508439750,-500.0,0.00049862,60]
[399571938,1766508439789,-518.5,0.00049862,60]
[399571939,1766508439829,-167.0,0.000499,120]
[399571940,1766508439868,-179.0,0.000499,120]
[399571941,1766508439909,-200.0,0.00049981,120]
[399571942,1766508439948,-3000.0,0.00049989,120]
[399571943,1766508439991,-151.0,0.00049989,120]
[399571944,1766508440034,-6888.0,0.00049989,120]
[399571945,1766508440078,-500.0,0.00049989,120]
[399571946,1766508440121,-600.0,0.00049989,120]
[399571947,1766508440163,-500.0,0.00049989,120]
[399571948,1766508440204,-500.0,0.00049989,120]
[399571949,1766508440245,-1108.0,0.00049989,120]
[399571950,1766508440286,-300.0,0.00049989,120]
[399571951,1766508440327,-250.0,0.00049989,120]
[399571952,1766508440370,-500.0,0.00049989,120]
[399571953,1766508440413,-500.0,0.00049989,120]
[399571954,1766508440455,-500.0,0.00049989,120]
[399571955,1766508440495,-160.0,0.00049989,120]
[399571956,1766508440532,-1000.0,0.00049989,120]
[399571957,1766508440571,-250.0,0.00049989,120]
[399571958,1766508440610,-250.0,0.00049989,120]
[399571959,1766508440649,-220.0,0.00049989,120]
[399571960,1766508440687,-1500.0,0.00049989,120]
[399571961,1766508440729,-250.0,0.00049989,120]
[399571962,1766508440771,-151.0,0.00049989,120]
[399571963,1766508440814,-151.0,0.00049989,120]
[399571964,1766508440857,-414.0,0.00049989,120]
[399571965,1766508440897,-151.0,0.00049989,120]
[399571966,1766508440938,-151.0,0.00049989,120]
[399571967,1766508440980,-151.0,0.00049989,120]
[399571968,1766508441023,-520.0,0.00049989,120]
[399571969,1766508441069,-151.0,0.00049989,120]
[399571970,1766508441114,-250.0,0.00049989,120]
[399571971,1766508441157,-250.0,0.00049989,120]
[399571972,1766508441201,-500.0,0.00049989,120]
[399571973,1766508441243,-500.0,0.00049989,120]
[399571974,1766508441287,-500.0,0.00049989,120]
[399571975,1766508441332,-1284896.53231189,0.0004999,120]
[399571976,1766508441376,-5000000.0,0.0004999,120]
[399571977,1766508441420,-255.0,0.0004999,60]
[399571978,1766508441462,-1000.0,0.00049999,120]
[399571979,1766508441504,-1000.0,0.0005,120]
[399571980,1766508441546,-10000.0,0.0005,120]
[399571981,1766508441588,-172.75755852,0.0005,120]
[399571982,1766508441627,-1932.02119707,0.0005,120]
[399571983,1766508441663,-1865.61652489,0.0005,120]
[399571984,1766508441698,-346.81596533,0.0005,120]
[399571985,1766508441734,-2011.94694204,0.0005,120]
[399571986,1766508441769,-1368.33304329,0.0005,120]
[399571987,1766508441806,-1087.12854675,0.0005,120]
[399571988,1766508441841,-225.55653951,0.0005,120]
[399571989,1766508441878,-165.45717588,0.0005,120]
[399571991,1766508441915,-1083.18381724,0.0005,120]
[399571992,1766508441951,-882.76394653,0.0005,120]
[399571993,1766508441991,-200.0,0.0005,120]
[399571994,1766508442031,-1247.84819251,0.0005,120]
[399571995,1766508442072,-500.0,0.0005,120]
[399571996,1766508442115,-150.0,0.0005,120]
[399571997,1766508442159,-10000.0,0.0005,120]
[399571998,1766508442207,-664.43,0.0005,120]
[399571999,1766508442254,-2666.0,0.0005,120]
[399572000,1766508442302,-693.48,0.0005,120]
[399572001,1766508442343,-165.60673595,0.0005,60]
[399572002,1766508442382,-2032.859009,0.0005,120]
[399572003,1766508442421,-200.0,0.0005,120]
[399572004,1766508442459,-281.34,0.0005,120]
[399572005,1766508442497,-2213.15,0.0005,120]
[399572006,1766508442535,-476.57994519,0.0005,120]
[399572007,1766508442783,-166.17,0.0005,120]
[399572008,1766508442827,-486.20489124,0.0005,120]
[399572009,1766508442872,-1132.32,0.0005,120]
[399572010,1766508442916,-270.12,0.0005,120]
[399572011,1766508442958,-25354.86705664,0.0005,90]
[399572012,1766508443009,-8589.33,0.0005,120]
[399572013,1766508443052,-2237.24701752,0.0005,120]
[399572014,1766508443093,-2732.12999901,0.0005,120]
[399572015,1766508443130,-331.65714821,0.0005,120]
[399572016,1766508443167,-5580.67587997,0.0005,120]
[399572017,1766508443207,-226.74,0.0005,120]
[399572018,1766508443249,-249.79,0.0005,120]
[399572019,1766508443291,-570.25248129,0.0005,120]
[399572020,1766508443334,-171.89054975,0.0005,120]
[399572021,1766508443384,-626.12181632,0.0005,120]
[399572022,1766508443427,-1089.83387802,0.0005,120]
[399572023,1766508443471,-1000000.0,0.0005,120]
[399572024,1766508443516,-150.0,0.0005,120]
[399572025,1766508443558,-253.0,0.0005,67]
[399572026,1766508443604,-722.42206466,0.0005,120]
[399572027,1766508443646,-226.8953345,0.0005,120]
[399572028,1766508443689,-1369.23986949,0.00050136,120]
[399572029,1766508443730,-499.86426276,0.00050136,120]
[399572030,1766508443774,-756.60649301,0.00050136,120]
[399572031,1766508443820,-340.74841325,0.00050136,120]
[399572032,1766508443863,-1039.26021103,0.00050136,120]
[399572033,1766508443908,-2119.04145447,0.00050136,120]
[399572034,1766508443952,-2017.61813607,0.00050136,120]
[399572035,1766508444003,-1042.94440225,0.00050136,120]
[399572036,1766508444048,-1060.05921609,0.00050136,120]
[399572037,1766508444089,-582.19218011,0.00050136,120]
[399572038,1766508444130,-514.58227235,0.00050136,120]
[399572039,1766508444176,-1956.29223417,0.00050136,120]
[399572040,1766508444223,-2752.61241268,0.00050136,120]
[399572041,1766508444270,-1842.16885451,0.00050136,120]
[399572042,1766508444316,-586.37979375,0.00050136,120]
[399572043,1766508444356,-983.01833543,0.00050136,120]
[399572044,1766508444396,-715.94171368,0.00050136,120]
[399572045,1766508444437,-1723.83119516,0.00050136,120]
[399572046,1766508444490,-525.14,0.00050136,120]
[399572047,1766508444565,-907.0434033,0.00050136,60]
[399572048,1766508444635,-546.07730926,0.00050136,120]
[399572049,1766508444706,-1273.85318215,0.00050136,120]
[399572050,1766508444773,-616.21303759,0.00050136,120]
[399572051,1766508444836,-779.3,0.00050136,120]
[399572052,1766508444893,-761.02690577,0.00050136,120]
[399572053,1766508444954,-1543.53285612,0.00050136,120]
[399572054,1766508445023,-680.43445203,0.00050136,120]
[399572055,1766508445087,-1112.28,0.00050136,120]
[399572056,1766508445148,-705.5895257,0.00050136,120]
[399572057,1766508445220,-1242.82820425,0.00050136,120]
[399572058,1766508445281,-249.79096796,0.00050136,120]
[399572059,1766508445345,-636.26783212,0.00050136,120]
[399572060,1766508445407,-1402.22786374,0.00050136,120]
[399572061,1766508445470,-1997.38278875,0.00050136,120]
[399572062,1766508445533,-1364.97971122,0.00050136,60]
[399572063,1766508445600,-766.70780738,0.00050136,120]
[399572064,1766508445663,-840.11597076,0.00050136,120]
[399572065,1766508445727,-522.50685668,0.00050136,120]
[399572066,1766508445790,-642.76955569,0.00050136,120]
[399572067,1766508445853,-1017.09133732,0.00050136,120]
[399572068,1766508445914,-566.35110966,0.00050136,120]
[399572069,1766508445978,-568.01,0.00050136,120]
[399572070,1766508446039,-1210.55645856,0.00050136,120]
[399572071,1766508446120,-1710.84486184,0.00050136,120]
[399572072,1766508446195,-1313.17861742,0.00050136,120]
[399572073,1766508446266,-1224.65989932,0.00050136,120]
[399572074,1766508446334,-1696.97494392,0.00050136,120]
[399572075,1766508446400,-557.80062851,0.00050136,120]
[399572076,1766508446465,-527.13870984,0.00050136,120]
[399572077,1766508446537,-1297.68456125,0.00050136,120]
[399572078,1766508446609,-556.02211622,0.00050136,120]
[399572079,1766508446673,-604.96483844,0.00050136,120]
[399572080,1766508446733,-873.07564351,0.00050136,120]
[399572081,1766508446791,-2639.15746833,0.00050136,120]
[399572082,1766508446849,-600.17787954,0.00050136,120]
[399572083,1766508446907,-622.63184315,0.00050136,120]
[399572084,1766508446967,-567.77991448,0.00050136,120]
[399572085,1766508447025,-2830.46760907,0.00050136,120]
[399572086,1766508447083,-592.45183792,0.00050136,120]
[399572087,1766508447141,-711.92421905,0.00050136,120]
[399572088,1766508447483,-620.09780442,0.00050136,120]
[399572089,1766508447523,-865.46254496,0.00050136,120]
[399572090,1766508447560,-580.75419325,0.00050136,120]
[399572091,1766508447596,-865.61585385,0.00050136,120]
[399572092,1766508447633,-1432.78145272,0.00050136,120]
[399572093,1766508447670,-893.76,0.00050136,120]
[399572094,1766508447707,-1688.86798526,0.00050136,120]
[399572095,1766508447744,-905.52260063,0.00050136,120]
[399572096,1766508447779,-632.41909277,0.00050136,120]
[399572097,1766508447815,-593.12362045,0.00050136,120]
[399572098,1766508447850,-519.50478405,0.00050136,120]
[399572099,1766508447885,-1836.15513465,0.00050136,120]
[399572100,1766508447922,-697.34233185,0.00050136,120]
[399572101,1766508447957,-878.87251177,0.00050136,120]
[399572102,1766508448002,-913.19962556,0.00050136,120]
[399572103,1766508448046,-751.15914744,0.00050136,120]
[399572104,1766508448087,-1075.72905998,0.00050136,60]
[399572105,1766508448125,-1328.5946948,0.00050136,120]
[399572106,1766508448163,-599.22420286,0.00050136,120]
[399572107,1766508448200,-887.00983351,0.00050136,120]
[399572108,1766508448240,-560.87610457,0.00050136,120]
[399572109,1766508448279,-1433.11931708,0.00050136,120]
[399572110,1766508448326,-2266.04499377,0.00050136,120]
[399572111,1766508448367,-2082.60559906,0.00050136,120]
[399572112,1766508448407,-1141.61783757,0.00050136,120]
[399572113,1766508448445,-1850.36903187,0.00050136,120]
[399572114,1766508448482,-1211.54909702,0.00050136,120]
[399572115,1766508448520,-1292.03586905,0.00050136,120]
[399572116,1766508448555,-819.4698521,0.00050136,120]
[399572117,1766508448593,-2579.37510993,0.00050136,120]
[399572118,1766508448630,-1084.00111882,0.00050136,120]
[399572119,1766508448668,-2454.14196888,0.00050136,120]
[399572120,1766508448707,-1697.42004555,0.00050136,120]
[399572121,1766508448741,-1279.68166859,0.00050136,120]
[399572122,1766508448778,-730.33220939,0.00050136,120]
[399572123,1766508448816,-751.58426866,0.00050136,120]
[399572124,1766508448857,-1053.46,0.00050136,120]
[399572125,1766508448894,-516.84182687,0.00050136,120]
[399572126,1766508448930,-847.29210969,0.00050136,120]
[399572127,1766508448969,-1188.29065682,0.00050136,120]
[399572128,1766508449009,-626.3362534,0.00050136,120]
[399572129,1766508449048,-1482.38583352,0.00050136,120]
[399572130,1766508449085,-612.87149069,0.00050136,120]
[399572131,1766508449120,-570.07758335,0.00050136,120]
[399572132,1766508449160,-1255.35746264,0.00050136,120]
[399572133,1766508449203,-1932.5,0.00050136,120]
[399572134,1766508449244,-1678.89726111,0.00050136,120]
[399572135,1766508449285,-1569.58718501,0.00050136,120]
[399572136,1766508449325,-1870.1900815,0.00050136,120]
[399572137,1766508449366,-2182.91671838,0.00050136,120]
[399572138,1766508449406,-1062.98015469,0.00050136,120]
[399572139,1766508449445,-503.57141445,0.00050136,120]
[399572140,1766508449482,-595.97486105,0.00050136,120]
[399572141,1766508449519,-811.77467507,0.00050136,120]
[399572142,1766508449556,-651.14921887,0.00050136,120]
[399572143,1766508449596,-1388.31922788,0.00050136,120]
[399572144,1766508449639,-1433.16367145,0.00050136,120]
[399572145,1766508449681,-689.3833305,0.00050136,120]
[399572146,1766508449723,-1562.20012447,0.00050136,120]
[399572147,1766508449765,-1196.33835579,0.00050136,120]
[399572148,1766508449807,-1708.75775695,0.00050136,120]
[399572149,1766508449847,-1298.67821473,0.00050136,120]
[399572150,1766508449887,-1689.32830664,0.00050136,120]
[399572151,1766508449929,-1005.6542694,0.00050136,120]
[399572152,1766508449972,-765.96612425,0.00050136,120]
[399572153,1766508450013,-165.97214221,0.00050136,60]
[399572154,1766508450054,-2243.93,0.00050136,120]
[399572155,1766508450090,-2200937.27,0.0005042,120]
[399572156,1766508450127,-3631.26155208,0.000505,120]
[399572157,1766508450163,-167.0,0.000505,120]
[399572158,1766508450204,-179.0,0.000505,120]
[399572159,1766508450247,-1000000.0,0.000505,120]
[399572160,1766508450290,-2000.0,0.00050684,120]
[399572161,1766508450332,-2119228.10446156,0.0005069,120]
[399572164,1766508481861,-253.36,0.00037359,60]
[399572165,1766508481910,-6773.0,0.00039041,120]
[399572166,1766508481951,-6773.0,0.00039041,120]
[399572167,1766508481993,-6773.0,0.00039041,120]
[399572168,1766508482035,-6773.0,0.00039041,120]
[399572169,1766508482087,-253.36,0.00040431,60]
[399572170,1766508483274,-253.36,0.00043502,60]
[399572171,1766508483334,-1269.54,0.00045,120]
[399572172,1766508483378,-1039.86,0.00045,120]
[399572173,1766508483422,-290.955,0.0004508,60]
[399572174,1766508483467,-217.96677561,0.000458,120]
[399572175,1766508483518,-253.36,0.00046574,120]
[399572176,1766508483567,-217.96677561,0.000471,120]
[399572177,1766508483617,-1269.54,0.0004725,120]
[399572178,1766508483662,-1039.86,0.0004725,120]
[399572179,1766508483703,-10701.53,0.0004742,120]
[399572180,1766508483745,-217.96677561,0.000485,120]
[399572181,1766508483788,-1269.54,0.00049613,120]
[399572182,1766508483828,-1039.86,0.00049613,120]
[399572183,1766508483870,-217.96677561,0.0005,120]
[399572184,1766508483921,-505.5,0.0005069,120]
[399572185,1766508483960,-721.25048462,0.000508,120]
[399572186,1766508484002,-155.848118,0.00050847,120]
[399572187,1766508484047,-1444.0,0.00050959,120]
[399572188,1766508484397,-1000.0,0.00050999,120]
[399572189,1766508484442,-4794.0,0.00051,120]
[399572190,1766508484485,-526.027579,0.00051,60]
[399572191,1766508484529,-20000.00000001,0.00051,120]
[399572192,1766508484572,-10000.0,0.00051,120]
[399572193,1766508484614,-150.0,0.00051,120]
[399572194,1766508484655,-2666.0,0.00051,120]
[399572195,1766508484699,-1912.0,0.00051,120]
[399572196,1766508484738,-2557.05797917,0.00051,120]
[399572197,1766508484776,-1500.0,0.00051,60]
[399572198,1766508484813,-167.0,0.00051,120]
[399572199,1766508484851,-179.0,0.00051,120]
[399572200,1766508484890,-1000000.0,0.00051,120]
[399572201,1766508484929,-253.0,0.00051,70]
[399572202,1766508484971,-37037.0,0.00051379,120]
[399572203,1766508485011,-520.16,0.000514,60]
[399572204,1766508485050,-1000000.0,0.000515,120]
[399572205,1766508485088,-217.96677561,0.000515,120]
[399572206,1766508485125,-167.0,0.000516,120]
[399572207,1766508485163,-179.0,0.000516,120]
[399572208,1766508485202,-1617.24034381,0.0005198,110]
[399572209,1766508485241,-1000.0,0.00051999,120]
[399572210,1766508485280,-375.38,0.00052,120]
[399572211,1766508485319,-227.47506619,0.00052,120]
[399572212,1766508485356,-1194.99246598,0.00052,120]
[399572213,1766508485395,-150.0,0.00052,120]
[399572214,1766508485432,-200.0,0.00052,120]
[399572215,1766508485469,-177.0611434,0.00052,120]
[399572216,1766508485505,-2666.0,0.00052,120]
[399572217,1766508485542,-1800.0,0.00052,120]
[399572218,1766508485580,-200.0,0.00052,120]
[399572219,1766508485618,-11128.60776278,0.00052,120]
[399572220,1766508485655,-1000000.0,0.00052,120]
[399572221,1766508485691,-253.0,0.00052,74]
[399572222,1766508485727,-2000.0,0.00052054,120]
[399572223,1766508485764,-1269.54,0.00052093,120]
[399572224,1766508485800,-1039.86,0.00052093,120]
[399572225,1766508485837,-167.0,0.000521,120]
[399572226,1766508485875,-179.0,0.000521,120]
[399572227,1766508485914,-2000.0,0.0005243,73]
[399572228,1766508485951,-2000.0,0.0005246,75]
[399572229,1766508485988,-2725.27,0.00052487,120]
[399572230,1766508486025,-5400.86102709,0.000525,120]
[399572231,1766508486062,-1000000.0,0.000525,120]
[399572232,1766508486101,-650000.0,0.000526,120]